Workbook

Sheet Name Error
B2: PI Name Error
C4: =pi -> 

Sheet Circumference of Circle
B2: Examples of PI Function | H2: For practice
B4: Circumference of a Circle | H4: Circumference of a Circle
B5: Radius | C5: Diameter | D5: Formula | E5: Result | H5: Radius | I5: Diameter | J5: Formula | K5: Result
B6: 4 | C6: =PRODUCT(2*B6) -> 8 | D6: =_xlfn.FORMULATEXT(E6) -> =PI()*C6 | E6: =PI()*C6 -> 25.13274123 | H6: 4 | I6: =PRODUCT(2*H6) -> 8
B7: 5 | C7: =PRODUCT(2*B7) -> 10 | D7: =_xlfn.FORMULATEXT(E7) -> =PI()*C7 | E7: =PI()*C7 -> 31.41592654 | H7: 5 | I7: =PRODUCT(2*H7) -> 10
B8: 6 | C8: 12 | D8: =_xlfn.FORMULATEXT(E8) -> =PI()*C8 | E8: 37.69911184 | H8: 6 | I8: 12
B9: 7 | C9: 14 | D9: =PI()*C9 | E9: 43.98229715 | H9: 7 | I9: 14

Sheet Area of a Circle
B2: Examples of PI Function | H2: For practice
B4: Area of a Circle | H4: Circumference of a Circle
B5: Radius | C5: Diameter | D5: Formula | E5: Result | H5: Radius | I5: Diameter | J5: Formula | K5: Result
B6: 4 | C6: =PRODUCT(2*B6) -> 8 | D6: =_xlfn.FORMULATEXT(E6) -> =PI()/4*B6^2 | E6: =PI()/4*B6^2 -> 12.56637061 | H6: 4 | I6: =PRODUCT(2*H6) -> 8
B7: 5 | C7: =PRODUCT(2*B7) -> 10 | D7: =_xlfn.FORMULATEXT(E7) -> =PI()/4*B7^2 | E7: =PI()/4*B7^2 -> 19.63495408 | H7: 5 | I7: =PRODUCT(2*H7) -> 10
B8: 6 | C8: 12 | D8: =_xlfn.FORMULATEXT(E8) -> =PI()/4*B8^2 | E8: 28.27433388 | H8: 6 | I8: 12
B9: 7 | C9: 14 | D9: =PI()/4*B9^2 | E9: 38.48451001 | H9: 7 | I9: 14

Sheet Volume of a Sphere
B2: Examples of PI Function | H2: For practice
B4: Volume of a Sphere | H4: Circumference of a Circle
B5: Radius | C5: Diameter | D5: Formula | E5: Result | H5: Radius | I5: Diameter | J5: Formula | K5: Result
B6: 4 | C6: =PRODUCT(2*B6) -> 8 | D6: =_xlfn.FORMULATEXT(E6) -> =4/3*PI()*B6^3 | E6: =4/3*PI()*B6^3 -> 268.0825731 | H6: 4 | I6: =PRODUCT(2*H6) -> 8
B7: 5 | C7: =PRODUCT(2*B7) -> 10 | D7: =_xlfn.FORMULATEXT(E7) -> =4/3*PI()*B7^3 | E7: =4/3*PI()*B7^3 -> 523.5987756 | H7: 5 | I7: =PRODUCT(2*H7) -> 10
B8: 6 | C8: 12 | D8: =_xlfn.FORMULATEXT(E8) -> =4/3*PI()*B8^3 | E8: 904.7786842 | H8: 6 | I8: 12
B9: 7 | C9: 14 | D9: =4/3*PI()*B9^3 | E9: 1436.75504 | H9: 7 | I9: 14

Sheet Period of a Pendulum
B2: Examples of PI Function | H2: For Practice
B4: Period of a Pendulum | H4: Period of a Pendulum
B5: g | C5: Length | D5: Formula | E5: Result | H5: g | I5: Length | J5: Formula | K5: Result
B6: 9.81 | C6: 10 | D6: =_xlfn.FORMULATEXT(E6) -> =2*PI()*SQRT(C6/B6) | E6: =2*PI()*SQRT(C6/B6) -> 6.343739849 | H6: 9.81 | I6: 10
B7: 9.81 | C7: 15 | D7: =_xlfn.FORMULATEXT(E7) -> =2*PI()*SQRT(C7/B7) | E7: =2*PI()*SQRT(C7/B7) -> 7.769462846 | H7: 9.81 | I7: 15
B8: 9.81 | C8: 20 | D8: =_xlfn.FORMULATEXT(E8) -> =2*PI()*SQRT(C8/B8) | E8: 8.971402931 | H8: 9.81 | I8: 20
B9: 9.81 | C9: 25 | D9: =2*PI()*SQRT(C9/B9) | E9: 10.0303334 | H9: 9.81 | I9: 25

Sheet Degrees to Radians
B2: Examples of PI Function | G2: For practice
B4: Degrees to Radians | G4: Degrees to Radians
B5: Number | C5: Formula | D5: Result | G5: Number | H5: Formula | I5: Result
B6: 10 | C6: =_xlfn.FORMULATEXT(D6) -> =B6*PI()/180 | D6: =B6*PI()/180 -> 0.1745329252 | G6: 10
B7: 15 | C7: =_xlfn.FORMULATEXT(D7) -> =B7*PI()/180 | D7: =B7*PI()/180 -> 0.2617993878 | G7: 15
B8: 20 | C8: =_xlfn.FORMULATEXT(D8) -> =B8*PI()/180 | D8: 0.3490658504 | G8: 20
B9: 25 | C9: =B9*PI()/180 | D9: 0.436332313 | G9: 25

Sheet Converting to Degrees
B2: Examples of PI Function
B4: Converting to Degrees
B5: Formula | C5: Result
B6: =_xlfn.FORMULATEXT(C6) -> =DEGREES(PI()) | C6: =DEGREES(PI()) -> 180
B7: =_xlfn.FORMULATEXT(C7) -> =DEGREES(2*PI()) | C7: =DEGREES(2*PI()) -> 360

Sheet VBA Code
B2: Examples of PI Function
B4: PI Value
B5: 3.141592654
